Workbook

Sheet Planning
A1: Planning and preparation
B2: hiking list | C2: (html)
B3: hiking list-lists | C3: (html)
B5: Main
C6: plan-prep aim-what-where-itinerary-travel > tickets, permits, hikes, air-forest conditions
C7: trial pack + hike-with-old-pack
C8: last min mail home, feet, fresh items
B10: Get
C11: hiking gear and supplies
C12: light stove
C13: town and camping supplies
C14: short sleeve t-shirt
C15: lite z-neck shirt
A18: Total pack weight for backpacking and travel = | F18: =Gear!M187 -> 555 | G18: oz | H18: =ROUNDUP(F18/16,0) -> 35 | I18: lb

Sheet Nutrition for hiking
B2: Also see nutrition in | D2: diet and exercise.xlsm
C5: Nutrient needs—protein, carbs, fats, vitamins, minerals, roughage, and water
D6: Hydration
D7: ¾ liters of water before hiking; ¼ liter frequently during; and 1 – 2 liters after
D9: Vitamins and meds
D10: With supper (to save morning time) or breakfast
D12: Meals
E13: Breakfast
E14: About 500 cal, some protein, low fat and fiber
E15: On a rest day eat less calories, more fiber
E16: Protein and collagen supplements
E18: Trail
E19: About 180 – 240 cal (45 – 60 g) per hour—1440 cal for 6 hours of hiking
E20: While hiking, 70% carbs, 30% protein and fat
E21: Eat grains and legumes regularly, in small amounts for energy and muscle rebuilding
E22: Replenish electrolytes—salty snacks, salt tabs, electrolyte drinks / supplements
E24: Supper
E25: Eat 30 – 45 minutes after hiking—when the body is receptive to replenishment
E26: Higher fat content than breakfast and trail (for digestive ease and sleeping warmth
E27: Aim for 500+ cal (2500+ cal / day); Backpacker.com recommends 4:1 carb:protein
E29: Before sleep
E30: Dessert of not too concentrated sugar and fluids with the evening meal
E31: Examples: fruit bars, energy nuggets, granola …
E32: Sugar free alternative to dessert—nuts, sesame sticks …

Sheet Food and fuel
A1: USE
B2: use: adjust so that with only staples, nominal cal / day is 1,500 | G2: modify (i) more than one person (ii) bulk items by wt. vs packs, cans, etc. and list 'pack' and 'buy' accordingly
B3: red items are to be entered for each trip and other items to do | H3: (iii) rice and beans for whether ramen is included
B4: food cal/oz from | C4: https://www.myfooddiary.com/
A6: TRIP LENGTH
B7: cal (days @) | C7: 1500 | D7: 7 | E7: =C7*D7 -> 10500 | F7: cal
B8: cal (days @) | C8: 2000 | D8: 0 | E8: =C8*D8 -> 0 | F8: cal
B9: cal (days @) | C9: 3000 | D9: 0 | E9: =C9*D9 -> 0 | F9: cal
B10: cal (days @) | C10: 4000 | D10: 0 | E10: 0 | F10: cal
B11: cal (days @) | C11: 5000 | D11: 0 | E11: 0 | F11: cal
B12: cal (days @) | C12: 6000 | D12: 0 | E12: 0 | F12: cal
E13: =SUM(E7:E12) -> 10500 | F13: sum
B14: days | D14: =SUM(D7:D12) -> 7
B15: weeks | D15: =D14/7 -> 1
B16: cal factor r/t 1500 | D16: =E13/(1500*D14) -> 1
A18: FOOD | C18: food | D18: packets etc | E18: unit | F18: # /wk | G18: oz/item | H18: # | I18: cal/oz | J18: oz/day | K18: cal/day | L18: take | M18: cal/day | N18: oz/day | O18: days | P18: pack | Q18: pack | R18: have | S18: buy | T18: buy
F19: nominal | J19: for nominal 1,500 cal/day | L19: y=1, n=0 | M19: actual | P19: oz | Q19: lb | R19: oz | S19: oz | T19: lb
C20: bold = staples (main calorie foods), italics = secondary or non-calorie foods, normal font = items that come as packets etc.
D21: experiment with staples amounts, new spices and seasonings, sugar v stevia
B22: BREAKFAST
C23: Granola | E23: oz | I23: 116 | J23: 2 | K23: =I23*J23 -> 232 | L23: 1 | M23: =K23*L23*D16 -> 232 | N23: =J23*L23*D16 -> 2 | O23: =D14 -> 7 | P23: =N23*O23 -> 14 | Q23: =P23/16 -> 0.875 | R23: 0 | S23: =MAX(P23-R23,0) -> 14 | T23: =S23/16 -> 0.875
C24: Milkman | D24: pkt | E24: oz | F24: 2 | G24: 3.44 | H24: =ROUNDUP(F24*D14/7,0) -> 2 | I24: 111 | J24: =H24*G24/D14 -> 0.9828571429 | K24: 109.0971429 | L24: 1 | M24: =K24*L24 -> 109.0971429 | N24: =J24*L24 -> 0.9828571429 | O24: =D14 -> 7 | P24: =N24*O24 -> 6.88 | Q24: =P24/16 -> 0.43 | R24: 0 | S24: =MAX(P24-R24,0) -> 6.88 | T24: =S24/16 -> 0.43
C25: Coffee | E25: oz | I25: 0 | J25: 1.4 | K25: 0 | L25: 1 | M25: =K25*L25 -> 0 | N25: =J25*L25 -> 1.4 | O25: =D14 -> 7 | P25: 9.8 | Q25: 0.6125 | R25: 0 | S25: 9.8 | T25: 0.6125
C26: Inst coffee pkts
C27: Coffee filters - 1 a day
C28: Teas | D28: tea bag | E28: oz | F28: 7 | G28: 0.0625 | H28: =ROUNDUP(F28*D14/7,0) -> 7 | I28: 0 | J28: =H28*G28/D14 -> 0.0625 | K28: 0 | L28: 1 | M28: 0 | N28: 0.0625 | O28: =D14 -> 7 | P28: 0.4375 | Q28: 0.02734375 | R28: 0 | S28: 0.4375 | T28: 0.02734375
C29: Sugar | E29: oz | I29: 110 | J29: 0.5 | K29: 55 | L29: 0 | M29: 0 | N29: 0 | O29: =D14 -> 7 | P29: 0 | Q29: 0 | R29: 0 | S29: =MAX(P29-R29,0) -> 0 | T29: 0
C30: Condensed milk | D30: can | E30: oz | F30: 1 | G30: 14 | H30: =ROUNDUP(F30*D14/7,0) -> 1 | I30: 100 | J30: =H30*G30/D14 -> 2 | K30: 200 | L30: 0 | M30: 0 | N30: 0 | O30: =D14 -> 7 | P30: 0 | Q30: 0 | R30: 0 | S30: =MAX(P30-R30,0) -> 0 | T30: 0
C31: Collagen
C32: Protein
C33: fluid cum breakfast container - introduce this - new or multi-purpose existing items and enter to | J33: Backpacking!A1
B34: LUNCH, TRAIL
C35: Sesame sticks | E35: oz | I35: 155 | J35: 2 | K35: 310 | L35: 1 | M35: =K35*L35*D16 -> 310 | N35: =J35*L35*D16 -> 2 | O35: =D14 -> 7 | P35: 14 | Q35: 0.875 | R35: 0 | S35: =MAX(P35-R35,0) -> 14 | T35: =S35/16 -> 0.875
C36: Nuts | E36: oz | I36: 160 | J36: 2 | K36: 320 | L36: 1 | M36: =K36*L36*D16 -> 320 | N36: =J36*L36*D16 -> 2 | O36: =D14 -> 7 | P36: 14 | Q36: 0.875 | R36: 0 | S36: =MAX(P36-R36,0) -> 14 | T36: =S36/16 -> 0.875
C37: Dried fruit | E37: oz | I37: 100 | J37: 1.25 | K37: =I37*J37 -> 125 | L37: 1 | M37: =K37*L37*D16 -> 125 | N37: =J37*L37*D16 -> 1.25 | O37: =D14 -> 7 | P37: =N37*O37 -> 8.75 | Q37: =P37/16 -> 0.546875 | R37: 0 | S37: 8.75 | T37: =S37/16 -> 0.546875
C38: Bread
C39: Peanut butter
C40: Jelly
B42: DINNER
C43: Rice | E43: oz | I43: 115 | J43: 1 | K43: 115 | L43: 1 | M43: =K43*L43*D16 -> 115 | N43: =J43*L43*D16 -> 1 | O43: =D14 -> 7 | P43: 7 | Q43: 0.4375 | R43: 0 | S43: =MAX(P43-R43,0) -> 7 | T43: 0.4375
C44: Beans | E44: oz | I44: 102 | J44: 1 | K44: 102 | L44: 1 | M44: =K44*L44*D16 -> 102 | N44: =J44*L44*D16 -> 1 | O44: =D14 -> 7 | P44: 7 | Q44: 0.4375 | R44: 0 | S44: =MAX(P44-R44,0) -> 7 | T44: 0.4375
C45: TVP - textured vegetable protein (complete protein)
C46: Ramen | D46: pkt | E46: oz | F46: 2 | G46: 2.5 | H46: =ROUNDUP(F46*D14/7,0) -> 2 | I46: 102 | J46: =H46*2.5/D14 -> 0.7142857143 | K46: 72.85714286 | L46: 0 | M46: 0 | N46: 0 | O46: =D14 -> 7 | P46: 0 | Q46: 0 | R46: 0 | S46: =MAX(P46-R46,0) -> 0 | T46: 0
C47: Broths | D47: pkt | E47: oz | F47: 5 | G47: 0.5 | H47: =ROUNDUP(F47*D14/7,0) -> 5 | I47: 70 | J47: =H47*G47/D14 -> 0.3571428571 | K47: 25 | L47: 0 | M47: 0 | N47: 0 | O47: =D14 -> 7 | P47: 0 | Q47: 0 | R47: 0 | S47: =MAX(P47-R47,0) -> 0 | T47: 0
C48: Jerky | D48: pkt | E48: oz | F48: 1 | G48: 3 | H48: =ROUNDUP(F48*D14/7,0) -> 1 | I48: 116 | J48: =H48*G48/D14 -> 0.4285714286 | K48: 49.71428571 | L48: 0 | M48: 0 | N48: 0 | O48: =D14 -> 7 | P48: 0 | Q48: 0 | R48: 0 | S48: 0 | T48: 0
C49: Jerky | D49: pkt | E49: oz | F49: 1 | G49: 7 | H49: =ROUNDUP(F49*D14/7,0) -> 1 | I49: 116 | J49: =H49*G49/D14 -> 1 | K49: 116 | L49: 0 | M49: 0 | N49: 0 | O49: =D14 -> 7 | P49: 0 | Q49: 0 | R49: 0 | S49: 0 | T49: 0
C50: Cheese, cheddar | E50: oz | I50: 120 | J50: 1 | K50: 120 | L50: 0 | M50: 0 | N50: 0 | O50: =D14 -> 7 | P50: 0 | Q50: 0 | R50: 0 | S50: 0 | T50: 0
C51: Drinks, kool-aid | D51: pkt | E51: oz | F51: 3 | G51: 0.13 | H51: =ROUNDUP(F51*D14/7,0) -> 3 | I51: 0 | J51: =H51*G51/D14 -> 0.05571428571 | K51: 0 | L51: 1 | M51: 0 | N51: 0.05571428571 | O51: =D14 -> 7 | P51: 0.39 | Q51: 0.024375 | R51: 0 | S51: 0.39 | T51: 0.024375
C52: Fruit bars | D52: bar | E52: oz | F52: 7 | G52: 1.2 | H52: =ROUNDUP(F52*D14/7,0) -> 7 | I52: 100 | J52: =H52*G52/D14 -> 1.2 | K52: 120 | L52: 1 | M52: =K52*L52*D16 -> 120 | N52: =J52*L52 -> 1.2 | O52: =D14 -> 7 | P52: 8.4 | Q52: 0.525 | R52: 0 | S52: 8.4 | T52: 0.525
C53: Energy nuggets | E53: oz | I53: 135 | J53: 1 | K53: 135 | L53: 0 | M53: =K53*L53 -> 0 | N53: =J53*L53 -> 0 | O53: =D14 -> 7 | P53: 0 | Q53: 0 | R53: 0 | S53: 0 | T53: 0
C54: Spices and salt | D54: collection | E54: oz | F54: =1/3 -> 0.3333333333 | G54: =3 -> 3 | H54: =ROUNDUP(1.5*F54*D15,0) -> 1 | I54: 0 | J54: =H54*G54/D14 -> 0.4285714286 | K54: 0 | L54: 1 | M54: =K54*L54 -> 0 | N54: =J54*L54 -> 0.4285714286 | O54: =D14 -> 7 | P54: =N54*O54 -> 3 | Q54: =P54/16 -> 0.1875 | R54: 0 | S54: 3 | T54: 0.1875
C55: Sun dried tomatoes | D55: bulk pkt | E55: oz | F55: =1/3 -> 0.3333333333 | G55: 2.5 | H55: =ROUNDUP(1.5*F55*D16,0) -> 1 | I55: 0 | J55: =H55*G55/D14 -> 0.3571428571 | K55: 0 | L55: 0 | M55: =K55*L55 -> 0 | N55: =J55*L55 -> 0 | O55: =D14 -> 7 | P55: =N55*O55 -> 0 | Q55: =P55/16 -> 0 | R55: 2.5 | S55: =MAX(P55-R55,0) -> 0 | T55: =S55/16 -> 0
C56: Powdered tomatoes | L56: 0
C57: Food cans etc (camp) | L57: 0
E58: review this for spices adequate for three weeks… except salt, for which extra should be taken for trips over a week
E59: unit | F59: # items/wk | G59: oz/item | H59: # items | I59: cal/oz | J59: oz/day | K59: cal/day | L59: take | M59: cal/day | N59: oz/day | O59: days | P59: oz | Q59: lb | R59: have | S59: need | T59: need
F60: nominal | S60: oz | T60: lb
C61: Olive oil | D61: container | E61: oz | F61: 2 | G61: 1 | H61: =ROUNDUP(F61*D14/7,0) -> 2 | I61: 240 | J61: =H61*G61/D14 -> 0.2857142857 | K61: 68.57142857 | L61: 1 | M61: =K61*L61*D16 -> 68.57142857 | N61: 0.2857142857 | O61: =D14 -> 7 | P61: 2 | Q61: 0.125 | R61: 0 | S61: =P61-R61 -> 2 | T61: =S61/16 -> 0.125
C62: Vitamins, meds | E62: oz | I62: 0 | J62: =1.5/7 -> 0.2142857143 | K62: 0 | L62: 1 | M62: 0 | N62: 0.2142857143 | O62: =D14 -> 7 | P62: 1.5 | Q62: 0.09375 | R62: 0 | S62: =P62-R62 -> 1.5 | T62: =S62/16 -> 0.09375
E63: re-estimate
B64: Fresh veg | C64: Jalapenos | D64: oz | E64: oz | F64: 2 | G64: 0.5 | H64: =ROUNDUP(F64*D14/7,0) -> 2 | I64: 0 | J64: =H64*G64/D14 -> 0.1428571429 | K64: 0 | L64: 1 | M64: 0 | N64: 0.1428571429 | O64: =D14 -> 7 | P64: 1 | Q64: 0.0625 | R64: 0 | S64: 1 | T64: 0.0625
C65: Garlic | D65: pkt | E65: oz | F65: 1 | G65: 1.5 | H65: =ROUNDUP(F65*D14/7,0) -> 1 | I65: 0 | J65: =H65*G65/D14 -> 0.2142857143 | K65: 0 | L65: 1 | M65: 0 | N65: 0.2142857143 | O65: =D14 -> 7 | P65: 1.5 | Q65: 0.09375 | R65: 0 | S65: 1.5 | T65: 0.09375
C66: Garlic, fresh peeled | L66: 0
C67: Onion | D67: oz | E67: oz | F67: 1 | G67: 8 | H67: =ROUNDUP(F67*D14/7,0) -> 1 | I67: 0 | J67: =H67*G67/D14 -> 1.142857143 | K67: 0 | L67: 1 | M67: 0 | N67: 1.142857143 | O67: =D14 -> 7 | P67: 8 | Q67: 0.5 | R67: 0 | S67: 8 | T67: 0.5
C68: Pre-sautéed vegetables
C69: Lime | D69: oz | E69: oz | F69: 1 | G69: 2 | H69: =ROUNDUP(F69*D14/7,0) -> 1 | I69: 0 | J69: =H69*G69/D14 -> 0.2857142857 | K69: 0 | L69: 1 | M69: 0 | N69: 0.2857142857 | O69: =D14 -> 7 | P69: 2 | Q69: 0.125 | R69: 0 | S69: 2 | T69: 0.125
B70: Freeze dried veg (to be entered)
B71: DRY DINNER | C71: comment - rice and beans are ~ 107 and nuts and sesame stix are ~ 155 cal / oz; so, can substitute 2/3 of rice-beans by nuts-stix for 0 to 3 days / wk at time of purchase
C73: Total | M73: =SUM(M23:M62) -> 1501.668571 | N73: =SUM(N23:N69) -> 15.66535714 | P73: =SUM(P23:P69) -> 109.6575 | Q73: =P73/16 -> 6.85359375
A75: BEAR VAULT | L75: 1 | P75: 41 | Q75: =P75/16 -> 2.5625
A77: FUEL | D77: item | E77: unit | F77: # items/wk | G77: oz/item | H77: # items | L77: take | O77: days | P77: oz | Q77: lb
F78: nominal 1.4 - 2.0
C79: MSR ISOPRO | D79: cannister | E79: oz | F79: 2 | G79: =13.1 -> 13.1 | H79: =INT(F79*D15)*L79 -> 2 | L79: 1 | O79: =D14 -> 7 | P79: =G79*H79*L79 -> 26.2 | Q79: =P79/16 -> 1.6375
C80: MSR ISOPRO | D80: cannister | E80: oz | F80: N/A | G80: =7.4 -> 7.4 | H80: =ROUNDUP((F79*D15-INT(F79*D15))*(8/3.9),0) -> 0 | L80: =L79 -> 1 | O80: =D14 -> 7 | P80: =G80*H80*L80 -> 0 | Q80: =P80/16 -> 0
C82: White Gas | E82: unit | G82: oz/item | H82: # items | L82: take | O82: days | P82: oz | Q82: lb
C83: (24 oz/wk) | L83: 0 | N83: =24/7 -> 3.428571429 | O83: =D14 -> 7 | P83: =N83*O83*L83 -> 0 | Q83: =P83/16 -> 0
D84: fuel bottle | E84: oz | G84: =33 -> 33 | H84: =INT(N83*D14/33) -> 0
D85: fuel bottle | E85: oz | G85: 20 | H85: =ROUNDUP((N83*D14/33-INT(N83*D14/33))*33/22,0) -> 2
D86: fuel bottle | E86: oz | G86: 11
C87: Total fuel | P87: =P79+P80+P83 -> 26.2 | Q87: =P87/16 -> 1.6375
A88: Total food, fuel, and vault | P88: =P73+P75+P87 -> 176.8575 | Q88: =P88/16 -> 11.05359375

Sheet Gear
A1: Trip length | B1: note that items on this page no longer depend on trip length, so the # of days here are inconsequential - see | H1: Food and fuel' | K1: sum cj
B2: Days = | C2: 0 | D2: this is set up to require days to be entered | H2: calories per day = | J2: 1500 | K2: =C2*J2 -> 0 | M2: Enter red | Q2: https://www.myfooddiary.com/
B3: Days = | C3: 0 | D3: this is set up to require days to be entered | H3: calories per day = | J3: 2500 | K3: =C3*J3 -> 0 | M3: items
B4: Days = | C4: 0 | D4: this is set up to require days to be entered | H4: calories per day = | J4: 3000 | K4: =C4*J4 -> 0
B5: Days = | C5: 0 | D5: this is set up to require days to be entered | H5: calories per day = | J5: 4000 | K5: 0
B6: Days = | C6: 0 | D6: this is set up to require days to be entered | H6: calories per day = | J6: 5000 | K6: 0
B8: Totals= | C8: =MAX(SUM(C2:C7),0.00000000001) -> 1e-11 | K8: =SUM(K2:K6) -> 0
Q10: figures in
B11: Weeks = | C11: =C8/7 -> 1.428571429e-12 | H11: calorie factor = | J11: =K8/(C8*1500) -> 0 | Q11: this column
B12: Months = | C12: =C8*12/365 -> 3.287671233e-13 | L12: =ROUND(2.4,0) -> 2 | Q12: from the web
B14: #people= | C14: 1 | D14: one to four
H15: #food stuff sacks = | J15: 1 | K15: sm + lg | Q15: or label
A16: Travel-camping material is in a blue font
A18: Class | B18: Sub-class | K18: all weights are per person | O18: natural units | V18: Modifications to consider
A19: Food | B19: Meal | D19: 1=take, 0=no | E19: unit | F19: oz/unit | G19: units/day | H19: units /week | I19: units/month | J19: weeks | K19: /trip | L19: units (total) | M19: oz (total) | N19: lb | O19: have | P19: buy | Q19: cal/oz | R19: cal/week | S19: cal/day | T19: cal/lb | W19: Simplification
A21: =K8/C8 -> 0 | B21: Breakfast | L21: needed | M21: needed | W21: More than one person, assuming similar personal gear…
A22: target | C22: Granola (~116 cal/oz) | D22: 1 | E22: cup | F22: 3.5 | H22: 3.5 | J22: =C11 -> 1.428571429e-12 | L22: =M22/F22 -> 0 | M22: =D22*F22*H22*J22*J11 -> 0 | N22: =M22/16 -> 0 | O22: 0 | P22: =MAX(M22-O22,0) -> 0 | Q22: 116 | R22: =H22*F22*Q22*D22 -> 1421 | S22: =R22/7 -> 203 | T22: =Q22*16 -> 1856 | X22: … and shared gear, e.g., one stove / four people
A23: mean cal/day | C23: Milk powder | D23: 0 | E23: cup | F23: 6.5 | H23: =J11 -> 0 | J23: =C11 -> 1.428571429e-12 | L23: =M23/F23 -> 0 | M23: =D23*F23*H23*J23 -> 0 | N23: =M23/16 -> 0 | Q23: 100 | R23: =H23*F23*Q23*D23 -> 0 | S23: =R23/7 -> 0 | T23: =Q23*16 -> 1600 | W23: Automated entry of new items
C24: Milkman | D24: 1 | E24: packet | F24: 3.44 | H24: =ROUNDUP((C2+C3+C4+C5+C6)/4,0) -> 0 | L24: =H24*C11*D24 -> 0 | M24: =D24*H24*3.44 -> 0 | N24: 0 | O24: 7 | P24: =MAX(L24-O24,0) -> 0 | Q24: 100 | R24: =Q24*M24 -> 0 | S24: =R24/7 -> 0 | T24: 1600
A25: =SUM(C2:C6) -> 0 | C25: Coffee | D25: 1 | E25: oz | F25: 1 | G25: 1.2 | H25: =G25*7 -> 8.4 | J25: =C11 -> 1.428571429e-12 | L25: 1.2e-11 | M25: =D25*F25*H25*J25 -> 1.2e-11 | N25: 7.5e-13 | O25: 0 | P25: =MAX(M25-O25,0) -> 1.2e-11 | Q25: 0 | R25: =H25*F25*Q25*D25 -> 0 | S25: 0 | T25: 0
A26: days | G26: 5 heaping tbsp | V26: =N184 -> 23.59375
C27: Coffee, freeze dried, consider
C28: Sugar (~110 cal/oz) | D28: 1 | E28: oz | F28: 1 | H28: 3.5 | J28: =C11 -> 1.428571429e-12 | L28: =M28/F28 -> 5e-12 | M28: =D28*F28*H28*J28 -> 5e-12 | N28: 3.125e-13 | O28: 0 | P28: =MAX(L28-O28,0) -> 5e-12 | Q28: 110 | R28: =H28*F28*Q28*D28 -> 385 | S28: 55 | T28: 1760
C29: Vitamins, meds, ibuprofen | D29: 1 | E29: oz | F29: 1 | H29: 1 | J29: =C11 -> 1.428571429e-12 | L29: =M29/F29 -> 1.428571429e-12 | M29: =D29*F29*H29*J29 -> 1.428571429e-12 | N29: =M29/16 -> 8.928571429e-14 | O29: plenty | P29: 0 | Q29: 0 | R29: =H29*F29*Q29*D29 -> 0 | S29: 0 | T29: 0 | V29: qd-4 ibu 1 allegra 100mg losartan 25 mg hctz 1(b,C,D,E,Glucosamine, Multi)
A30: may sustitute | C30: Teas | D30: 1 | E30: pkt | F30: 0.0625 | H30: 7 | J30: =C11 -> 1.428571429e-12 | L30: 1e-11 | M30: =D30*F30*H30*J30 -> 6.25e-13 | N30: =M30/16 -> 3.90625e-14 | O30: 22 | P30: =MAX(L30-O30,0) -> 0 | Q30: 0 | R30: =H30*F30*Q30*D30 -> 0 | S30: 0 | T30: 0
C31: Drinks, KoolAid | D31: 1 | E31: pkt | F31: 0.13 | H31: 3 | J31: =C11 -> 1.428571429e-12 | L31: =ROUND(H31*J31,0) -> 0 | M31: =L31*F31 -> 0 | N31: =M31/16 -> 0 | O31: 50 | P31: =MAX(L31-O31,0) -> 0 | Q31: 0 | R31: =H31*F31*Q31*D31 -> 0 | S31: =R31/7 -> 0 | T31: =Q31*16 -> 0
A32: amounts | C32: Condensed milk | D32: 0 | E32: can | F32: 14 | H32: 1 | J32: =C11 -> 1.428571429e-12 | K32: 1 | L32: 0 | M32: =D32*F32*H32*J32 -> 0 | N32: =M32/16 -> 0 | O32: 0 | P32: =MAX(L32-O32,0) -> 0 | Q32: 100 | R32: =D32*Q32*F32/J32 -> 0 | S32: 0 | T32: 1600
B33: Trail
C34: Sesame sticks | D34: 1 | E34: oz | F34: 1 | H34: 7 | J34: =C11 -> 1.428571429e-12 | L34: =M34/F34 -> 0 | M34: =D34*F34*H34*J34*J11 -> 0 | N34: =M34/16 -> 0 | O34: 0 | P34: =MAX(M34-O34,0) -> 0 | Q34: 155 | R34: =H34*F34*Q34*D34 -> 1085 | S34: 155 | T34: 2480
A35: 1 cup = 2 2/3 fist | C35: Nuts (Peanuts, Cashews ~160 cal/oz) | D35: 1 | E35: oz | F35: 1 | H35: 10.5 | J35: =C11 -> 1.428571429e-12 | L35: =M35/F35 -> 0 | M35: =D35*F35*H35*J35*J11 -> 0 | N35: 0 | O35: 0 | P35: =MAX(M35-O35,0) -> 0 | Q35: 160 | R35: =H35*F35*Q35*D35 -> 1680 | S35: 240 | T35: 2560
C36: Dried fruit | D36: 1 | E36: oz | F36: 1 | H36: 14 | J36: =C11 -> 1.428571429e-12 | L36: 0 | M36: =D36*F36*H36*J36*J11 -> 0 | N36: 0 | O36: 17 | P36: =MAX(M36-O36,0) -> 0 | Q36: 100 | R36: =H36*F36*Q36*D36 -> 1400 | S36: 200 | T36: 1600
B37: Dinner
C38: Rice, instant | D38: 1 | E38: oz | F38: 1 | H38: 7 | J38: =C11 -> 1.428571429e-12 | L38: =M38/F38 -> 0 | M38: =D38*F38*H38*J38*J11 -> 0 | N38: =M38/16 -> 0 | O38: 64 | P38: =MAX(M38-O38,0) -> 0 | Q38: 115 | R38: =H38*F38*Q38*D38 -> 805 | S38: 115 | T38: 1840
C39: Rice, regular, to work on
C40: Beans | D40: 1 | E40: oz | F40: 1 | H40: 7 | J40: =C11 -> 1.428571429e-12 | L40: =M40/F40 -> 0 | M40: =D40*F40*H40*J40*J11 -> 0 | N40: =M40/16 -> 0 | O40: 31 | P40: =MAX(M40-O40,0) -> 0 | Q40: 102 | R40: =H40*F40*Q40*D40 -> 714 | S40: 102 | T40: 1632
C41: Ramen | D41: 1 | E41: packet | F41: 2.5 | H41: =ROUNDUP(2*J11,0) -> 0 | J41: =C11 -> 1.428571429e-12 | L41: =ROUND(H41*J41,0) -> 0 | M41: =L41*F41 -> 0 | N41: 0 | O41: 2 | P41: =MAX(L41-O41,0) -> 0 | Q41: 102 | R41: 0 | S41: 0 | T41: 1632
C42: Broths | D42: 1 | E42: packet | F42: 0.5 | H42: 4 | J42: =C11 -> 1.428571429e-12 | L42: 5 | M42: =L42*F42 -> 2.5 | N42: 0.15625 | O42: 5 | P42: =MAX(L42-O42,0) -> 0 | Q42: 70 | R42: 140 | S42: 20 | T42: 1120
C43: Jerky | D43: 1 | E43: packet | F43: 3 | H43: 1 | J43: =C11 -> 1.428571429e-12 | L43: =ROUNDUP(H43*J43,0) -> 1 | M43: 3 | N43: 0.1875 | O43: 0 | P43: =MAX(L43-0) -> 1 | Q43: 116 | R43: 348 | S43: 49.71428571 | T43: 1856
C44: Fruit bars | D44: 1 | E44: bar | F44: 1.2 | H44: 7 | J44: =C11 -> 1.428571429e-12 | L44: =ROUNDUP(H44*J44*J11,0) -> 0 | M44: 0 | N44: 0 | O44: 0 | P44: =MAX(L44-O44,0) -> 0 | Q44: 100 | R44: 840 | S44: 120 | T44: 1600
C45: Turmeric | D45: 0 | E45: oz | F45: 1 | H45: 1 | J45: =C11 -> 1.428571429e-12 | L45: =M45/F45 -> 0 | M45: =D45*F45*H45*J45 -> 0 | N45: 0 | Q45: 0 | R45: 0 | S45: 0 | T45: 0
C46: Jalapenos | D46: 1 | E46: jalapeno | F46: 0.5 | H46: 2 | J46: =C11 -> 1.428571429e-12 | L46: =ROUND(H46*J46,0) -> 0 | M46: =L46*F46 -> 0 | N46: 0 | O46: 0 | P46: =MAX(L46-O46,0) -> 0 | Q46: 0 | R46: 0 | S46: 0 | T46: 0
C47: Garlic, packets | D47: 1 | E47: packet | F47: 1.5 | H47: 1 | J47: =C11 -> 1.428571429e-12 | L47: =ROUND(H47*J47,0) -> 0 | M47: =L47*F47 -> 0 | N47: 0 | O47: 4 | P47: =MAX(L47-O47,0) -> 0 | Q47: 0 | R47: 0 | S47: 0 | T47: 0
C48: Onion, thumb dia | D48: 1 | E48: onion | F48: 6 | H48: 1 | J48: =C11 -> 1.428571429e-12 | L48: 0 | M48: 0 | N48: 0 | O48: 0 | P48: =MAX(L48-O48,0) -> 0 | Q48: 0 | R48: 0 | S48: 0 | T48: 0
C49: Lime | D49: 1 | E49: lime | F49: 2 | H49: 1 | J49: =C11 -> 1.428571429e-12 | L49: 0 | M49: 0 | N49: 0 | O49: 0 | P49: =MAX(L49-O49,0) -> 0 | Q49: 0 | R49: 0 | S49: 0 | T49: 0
C50: Spice collection(review) | D50: 1 | E50: oz | F50: 1 | H50: 3 | J50: =C11 -> 1.428571429e-12 | L50: 0 | M50: 0 | N50: 0 | O50: plenty | P50: 0 | Q50: 0 | R50: 0 | S50: 0 | T50: 0
C51: Cajun seasoning etc | L51: 0 | M51: 0
C52: Salt | D52: 1 | E52: oz | F52: 1 | H52: 2 | J52: =C11 -> 1.428571429e-12 | L52: 0 | M52: 0 | N52: 0 | O52: plenty | P52: 0 | Q52: 0 | R52: 0 | S52: 0 | T52: 0
C53: Olive oil (~240 cal/oz) | D53: 1 | E53: oz | F53: 1.5 | H53: =2*J11 -> 0 | J53: =C11 -> 1.428571429e-12 | L53: 0 | M53: 0 | N53: 0 | O53: plenty | P53: 0 | Q53: 240 | R53: =H53*F53*Q53*D54 -> 0 | S53: 0 | T53: 3840
B54: Stuff sacks | D54: 0 | E54: sack | F54: 4.5 | K54: =J15 -> 1 | L54: =K54 -> 1 | M54: =D54*F54*L54 -> 0 | N54: 0
B55: Bearvault | D55: 1 | E55: vault | F55: 41 | K55: 1 | L55: =K55 -> 1 | M55: =D55*F55*L55 -> 41 | N55: =M55/16 -> 2.5625
A56: Food, total (one person) | M56: 0 | N56: =M56/16 -> 0 | R56: 0 | S56: 0 | T56: 0
C57: Backpacker’s food—am = granola and/or alt | trail = nuts & fruits | pm = rice, beans, dry/fresh veg | and variety—try out soups | crackers and more | Kool-Aid
C58: Granola alternates and supplements—Cream of wheat savory | and with sugar and blueberries | and made-up mixes from co-op bulk
C60: Utensils | D60: 1 | E60: item(s) | F60: 8.5 | K60: 1 | M60: =D60*F60 -> 8.5 | N60: =M60/16 -> 0.53125
C61: Stove-MSR Dragonfly | D61: 0 | E61: item(s) | F61: 14.5 | K61: 1 | M61: =D61*F61*K61/C14 -> 0 | N61: =M61/16 -> 0
C62: Stove-Pocket rocket | D62: 1 | E62: item(s) | F62: 3.5 | K62: 1 | M62: =D62*F62*K62/C14 -> 3.5 | N62: =M62/16 -> 0.21875
C63: Heat shield | D63: 0 | E63: item(s) | F63: 2.5 | K63: 1 | M63: =D63*F63*K63/C14 -> 0 | N63: 0
C64: Pot, titanium | D64: 1 | E64: item(s) | F64: 8 | K64: 1 | M64: =D64*F64*K64/C14 -> 8 | N64: 0.5
C65: Pot, stainless, 0.50 gal | D65: 0 | E65: item(s) | F65: 20 | K65: 1 | M65: =D65*F65*K65/C14 -> 0 | N65: 0
C66: Pot, stainless, 0.25 gal | D66: 0 | E66: item(s) | F66: 13 | K66: 1 | M66: =D66*F66*K66/C14 -> 0 | N66: 0
C67: Fuel bottle, 1 l tr/ 33oz | D67: 0 | E67: item(s) | F67: 7.6 | K67: =ROUNDUP(H71*C14/32,0) -> 1 | M67: =D67*F67*K67/C14 -> 0 | N67: =M67/16 -> 0
C68: Fuel bottle, 591 ml / 20oz | D68: =0 -> 0 | E68: item(s) | F68: 6 | K68: 1 | M68: 0 | N68: =M68/16 -> 0
C69: Fuel bottle, 325 ml / 11oz | D69: 0 | E69: item(s) | F69: 4 | K69: 1 | M69: 0 | N69: =M69/16 -> 0
C71: Fuel | E71: fl oz | F71: 0.7 | H71: =(32*(1+(C14-1)*0.5)*C11)/C14 -> 4.571428571e-11 | M71: 0 | N71: =M71/16 -> 0
D73: 1=take, 0=no | E73: unit | F73: oz/unit | G73: units/day | H73: units /week | I73: units/month | J73: weeks | K73: /trip | L73: units (total) | M73: oz (total) | N73: lb
C74: MSR Pocket Rocket Deluxe | D74: 0 | E74: item(s) | F74: 2.9 | G74: currently, a one person item | K74: 1 | M74: =D74*F74 -> 0 | N74: =M74/16 -> 0
C75: MSR cannisters 7.4 oz | D75: 0 | E75: item(s) | F75: 7.4 | J75: =C11 -> 1.428571429e-12 | L75: =ROUNDUP((J76*H76)-INT(J76*H76),0) -> 1 | M75: 0 | N75: 0
C76: MSR cannisters 13.1 oz | D76: 1 | E76: item(s) | F76: 13.1 | H76: 1.4 | J76: =C11 -> 1.428571429e-12 | L76: =INT(J76*H76) -> 0 | M76: 0 | N76: =M76/16 -> 0
A77: Cooking… total | M77: =SUM(M60:M76) -> 20 | N77: 1.25
A79: Hiking, travel | I79: include in pack weight,1 = yes, 0 = no
C80: Backpack, Osprey, Ejos | D80: 1 | E80: item(s) | F80: 43 | I80: 1 | M80: =D80*F80*I80 -> 43 | N80: =M80/16 -> 2.6875
C81: Pack Cover, Osprey, Large | D81: 0 | E81: item(s) | F81: 3 | I81: 1 | M81: 0 | N81: =M81/16 -> 0
C82: Backpack, Osprey, Argon 85M | D82: 0 | E82: item(s) | F82: 104 | I82: 1 | M82: 0 | N82: =M82/16 -> 0
C83: Olive Jansport daypack | D83: 0 | E83: item(s) | F83: 17 | I83: 1 | M83: 0 | N83: =M83/16 -> 0
C84: Sea to Summit light daypack | D84: 1 | E84: item(s) | F84: 2.5 | I84: 1 | M84: =D84*F84*I84 -> 2.5 | N84: =M84/16 -> 0.15625
C85: Binoculars | D85: 0 | E85: item(s) | F85: 8.5 | I85: 1 | M85: 0 | N85: =M85/16 -> 0
C86: Rifle, .30-06 | D86: 0 | E86: item(s) | F86: 144 | I86: 1 | M86: 0 | N86: =M86/16 -> 0
C87: Shoes, ankle high | D87: 0 | E87: item(s) | F87: 48 | I87: 0 | M87: 0 | N87: 0
C88: Shoes, running | D88: 0 | E88: item(s) | F88: 30 | I88: 0 | M88: 0 | N88: 0
C89: Sneakers | D89: 0 | E89: item(s) | F89: 29 | I89: 1 | M89: 0 | N89: 0
C90: Sandals, Keen | D90: 1 | E90: item(s) | F90: 27 | I90: 1 | M90: =D90*F90*I90 -> 27 | N90: =M90/16 -> 1.6875
C91: Sandals for water crossing | D91: 1 | E91: item(s) | F91: 18 | I91: 1 | M91: 18 | N91: 1.125
C92: Sandals, Teva | D92: 0 | E92: item(s) | F92: 24 | I92: 1 | M92: =D92*F92*I92 -> 0 | N92: =M92/16 -> 0
C93: Shoes, dress | D93: 0 | E93: item(s) | F93: 26 | I93: 1 | M93: 0 | N93: =M93/16 -> 0
C94: MSR Snowshoes | D94: 0 | E94: item(s) | F94: 59 | I94: 1 | M94: 0 | N94: 0
C95: … MSR Snowshoe extebsuibs | D95: 0 | E95: item(s) | F95: 17 | I95: 1 | M95: 0 | N95: 0
C96: Cross-country skis and poles | D96: 0 | E96: item(s) | F96: 118 | I96: 1 | M96: 0 | N96: 0
C97: Crampons | D97: 0 | E97: item(s) | F97: 40.75 | I97: 1 | M97: 0 | N97: 0
C98: Trekking poles, Leki | D98: 1 | E98: item(s) | F98: 20 | I98: 1 | M98: 20 | N98: =M98/16 -> 1.25
C99: Insect netting (head) | D99: 1 | E99: item(s) | F99: 1.5 | I99: 1 | M99: 1.5 | N99: 0.09375
C100: Pouch-misc items | D100: 1 | E100: item(s) | F100: 16.5 | I100: 1 | M100: 16.5 | N100: 1.03125
C101: Albuterol | D101: 0 | E101: item(s) | F101: 1.5 | I101: 1 | M101: 0 | N101: 0
C102: Advair | D102: 0 | E102: item(s) | F102: 2 | I102: 1 | M102: =D102*F102*I102 -> 0 | N102: =M102/16 -> 0
C103: Maps, paper | D103: 1 | E103: item(s) | F103: 9.5 | I103: 1 | M103: 9.5 | N103: 0.59375
C104: Simple manual | D104: 2 | E104: item(s) | F104: 1.5 | I104: 1 | M104: 3 | N104: 0.1875
C105: Camera | D105: 0 | E105: item(s) | F105: 6.5 | I105: 1 | M105: 0 | N105: 0
C106: Phone | D106: 1 | E106: item(s) | F106: 10 | I106: 1 | M106: 10 | N106: 0.625
C107: Battery pack | D107: 1 | E107: item(s) | F107: 7 | G107: (two if more than a week) | I107: 1 | L107: =ROUNDUP(C8/7,0) -> 1 | M107: =D107*F107*L107 -> 7 | N107: =M107/16 -> 0.4375
C108: Cards, check, cash, key | D108: 1 | E108: item(s) | F108: 2 | I108: 1 | M108: 2 | N108: 0.125
C109: Batteries | D109: 1 | E109: item(s) | F109: 4.5 | I109: 1 | M109: 4.5 | N109: =M109/16 -> 0.28125
C110: Watch | D110: 1 | E110: item(s) | F110: 2 | I110: 1 | M110: 2 | N110: 0.125
C111: Plastic bags | D111: 1 | E111: item(s) | F111: 0.5 | I111: 1 | M111: 0.5 | N111: 0.03125
C113: H2O filter straw | D113: 1 | E113: item(s) | F113: 2.5 | I113: 1 | M113: =D113*F113*I113 -> 2.5 | N113: 0.15625
C114: 64 oz Platypus H2O bladder | D114: 0 | E114: item(s) | F114: 6 | I114: 1 | M114: =D114*F114*I114 -> 0 | N114: 0
C115: 32 oz Nalgene H2O bottle | D115: 1 | E115: item(s) | F115: 7 | I115: 1 | M115: =D115*F115*I115 -> 7 | N115: 0.4375
C116: H2O for platypus | D116: 0 | E116: oz | F116: 1 | G116: 64 | I116: 1 | M116: =D116*F116*G116*I116 -> 0 | N116: 0
C117: H2O for nalgene | D117: 0 | E117: oz | F117: 1 | G117: 32 | I117: 1 | M117: =D117*F117*G117*I117 -> 0 | N117: 0
A118: Hiking, total | M118: =SUM(M80:M117) -> 176.5 | N118: 11.03125
A120: Camping
C121: Tent (Nemo, Elite 1p) + footprint | D121: 1 | E121: items(s) | F121: 39 | M121: =D121*F121 -> 39 | N121: =M121/16 -> 2.4375 | Q121: take only if one person
C122: Tent (Sierra Designs, Flashlight) | D122: 0 | E122: items(s) | F122: 78 | M122: =D122*F122/2 -> 0 | N122: 0 | Q122: take if two people
C123: Bivvy | D123: 0 | E123: items(s) | F123: 17 | M123: =D123*F123 -> 0 | N123: 0 | Q123: take only if one person
C124: Bivvy - OR | D124: 0 | E124: items(s) | F124: 21 | M124: =D124*F124 -> 0 | N124: 0 | Q124: take only if one person
C125: Tarp 9'x9' | D125: 0 | E125: items(s) | F125: 33 | M125: =D125*F125 -> 0 | N125: 0
C126: Tarp 8'x6' | D126: 0 | E126: items(s) | F126: 25 | M126: =D126*F126 -> 0 | N126: 0
C127: Hyperlite tarp | D127: 0 | E127: items(s) | F127: 20 | M127: =D127*F127 -> 0 | N127: =M127/16 -> 0
C128: Ridge 10 stakes, lines 10 - 12', guys 4 -6'
C129: Ground sheet (separate) | D129: 0 | E129: items(s) | F129: 13 | M129: =D129*F129 -> 0 | N129: 0
C130: Footprint - MSR
C131: Sleeping bag, Western Mntnring | D131: 1 | E131: items(s) | F131: 18 | M131: =D131*F131 -> 18 | N131: =M131/16 -> 1.125
C132: Sleeping bag, Marmot | D132: 0 | E132: items(s) | F132: 34 | M132: 0 | N132: =M132/16 -> 0
C133: Sea to Summit Liner 'reactor' | D133: 1 | E133: items(s) | F133: 11 | M133: =D133*F133 -> 11 | N133: =M133/16 -> 0.6875
C134: Sea to Summit Liner 'reactor - extreme' | D134: 0 | E134: items(s) | F134: 15 | M134: =D134*F134 -> 0 | N134: =M134/16 -> 0
C135: Ground pad | D135: 1 | E135: items(s) | F135: 7.5 | M135: 7.5 | N135: 0.46875
C136: Rope, straps | D136: 1 | E136: items(s) | F136: 3.5 | M136: 3.5 | N136: 0.21875
C137: Med sack | D137: 1 | E137: items(s) | F137: 16 | M137: 16 | N137: 1
C138: Toilet | D138: 1 | E138: items(s) | F138: 3.5 | M138: 3.5 | N138: 0.21875
A139: Camping, total | M139: =SUM(M121:M138) -> 98.5 | N139: 6.15625
A141: Clothes | B141: * summer, general | D141: Count | G141: 1=take, 0=no | I141: include in pk wt, 0=no
C142: Lite cap shirt* | D142: 1 | E142: item(s) | F142: 5.5 | G142: 1 | I142: 1 | M142: =D142*F142*G142*I142 -> 5.5 | N142: =M142/16 -> 0.34375
C143: Lite silk shirt | D143: 1 | E143: item(s) | F143: 3.5 | G143: 0 | I143: 1 | M143: =D143*F143*G143*I143 -> 0 | N143: =M143/16 -> 0
C144: Lite cap shirt, tee / long sleeve* | D144: 1 | E144: item(s) | F144: 3.5 | G144: 0 | I144: 1 | M144: 0 | N144: =M144/16 -> 0
C145: Cap shirt, grey, hooded (OR)* | D145: 1 | E145: item(s) | F145: 4.5 | G145: 1 | I145: 1 | M145: 4.5 | N145: 0.28125
C146: Cap shirt, naval blue, hooded (OR)* | D146: 1 | E146: item(s) | F146: 4.5 | G146: 1 | I146: 1 | M146: =D146*F146*G146*I146 -> 4.5 | N146: =M146/16 -> 0.28125
C147: Arcteryx Lightweight Hoodie | D147: 1 | E147: item(s) | F147: 11 | G147: 1 | I147: 1 | M147: =D147*F147*G147*I147 -> 11 | N147: =M147/16 -> 0.6875
C148: Steel grey warm shirt* | D148: 1 | E148: item(s) | F148: 10 | G148: 0 | I148: 1 | M148: 0 | N148: 0
C149: Mid wt cap z-neck | D149: 1 | E149: item(s) | F149: 9 | G149: 0 | I149: 1 | M149: 0 | N149: 0
C150: Collared shirt / dress | D150: 1 | E150: item(s) | F150: 8 | G150: 0 | I150: 1 | M150: 0 | N150: 0
C151: Blk wind wall jacket, N Face | D151: 1 | E151: item(s) | F151: 26.5 | G151: 0 | I151: 1 | M151: 0 | N151: 0
C152: Blk lined jacket, N Face | D152: 1 | E152: item(s) | F152: 18 | G152: 0 | I152: 1 | M152: 0 | N152: 0
C153: Red wind wall jacket, Marmot | D153: 1 | E153: item(s) | F153: 23.5 | G153: 0 | I153: 1 | M153: 0 | N153: 0
C154: Rain jacket, Marmot* | D154: 1 | E154: item(s) | F154: 12.25 | G154: 0 | I154: 1 | M154: 0 | N154: 0
C155: Rain jacket, Northace* | D155: 1 | E155: item(s) | F155: 12 | G155: 1 | I155: 1 | M155: =D155*F155*G155*I155 -> 12 | N155: =M155/16 -> 0.75
C156: Rain jacket, Columbia | D156: 0 | E156: item(s) | F156: 18 | G156: 0 | I156: 1 | M156: 0 | N156: 0
C157: Down jacket, blue | D157: 0 | E157: item(s) | F157: 24 | G157: 0 | I157: 1 | M157: 0 | N157: =M157/16 -> 0
C158: Dress jacket | D158: 0 | E158: item(s) | F158: 26.5 | G158: 0 | I158: 1 | M158: 0 | N158: 0
C159: Gloves, lite | D159: 1 | E159: item(s) | F159: 1 | G159: 1 | I159: 1 | M159: 1 | N159: 0.0625
C160: Sun-visor* | D160: 1 | E160: item(s) | F160: 2 | G160: 1 | I160: 1 | M160: 2 | N160: =M160/16 -> 0.125
C161: Hat | D161: 1 | E161: item(s) | F161: 5 | G161: 0 | I161: 1 | M161: 0 | N161: 0
C162: Lite cap long u'wear* | D162: 1 | E162: item(s) | F162: 4 | G162: 0 | I162: 0 | M162: 0 | N162: 0
C163: Lite cap long u'wear, spare* | D163: 1 | E163: item(s) | F163: 4 | G163: 0 | I163: 1 | M163: =D163*F163*G163*I163 -> 0 | N163: 0
C164: Lite silk long u'wear* | D164: 1 | E164: item(s) | F164: 4.5 | G164: 1 | I164: 0 | M164: 0 | N164: =M164/16 -> 0
C165: Mid wt cap u'wear | D165: 1 | E165: item(s) | F165: 8 | G165: 0 | I165: 1 | M165: =D165*F165*G165*I165 -> 0 | N165: 0
C166: Short u'wear* | D166: 1 | E166: item(s) | F166: 4 | G166: 0 | I166: 1 | M166: =D166*F166*G166*I166 -> 0 | N166: 0
C167: Shorts* | D167: 1 | E167: item(s) | F167: 9 | G167: 1 | I167: 1 | M167: 9 | N167: 0.5625
C168: Hiking pants* | D168: 1 | E168: item(s) | F168: 16 | G168: 1 | I168: 1 | M168: 16 | N168: 1
C169: Belt* | D169: 1 | E169: item(s) | F169: 2 | G169: 0 | I169: 0 | M169: 0 | N169: 0
C170: Jeans | D170: 1 | E170: item(s) | F170: 24 | G170: 0 | I170: 1 | M170: 0 | N170: 0
C171: Rain pants* | D171: 1 | E171: item(s) | F171: 9 | G171: 1 | I171: 1 | M171: 9 | N171: 0.5625
C172: Heavy socks*, wear on travel | D172: 1 | E172: item(s) | F172: 4.5 | G172: 1 | I172: 0 | M172: 0 | N172: 0
C173: Heavy socks* | D173: 0 | E173: item(s) | F173: 4.5 | G173: 1 | I173: 1 | M173: =D173*F173*G173*I173 -> 0 | N173: 0
C174: Intermediate sox | D174: 1 | E174: item(s) | F174: 3 | G174: 0 | I174: 1 | M174: =D174*F174*G174*I174 -> 0 | N174: 0
C175: Lite sox* | D175: 1 | E175: item(s) | F175: 2 | G175: 0 | I175: 1 | M175: 0 | N175: 0
C176: Bandana* | D176: 1 | E176: item(s) | F176: 1.5 | G176: 1 | I176: 1 | M176: 1.5 | N176: 0.09375
C177: MSR Towel* | D177: 1 | E177: item(s) | F177: 2 | G177: 0 | I177: 1 | M177: 0 | N177: 0
C178: Spade | D178: 1 | E178: item(s) | F178: 3 | G178: 1 | I178: 1 | M178: =D178*F178*G178*I178 -> 3 | N178: =M178/16 -> 0.1875
A179: 0 | C179: Stuff sack with plastic liner* | D179: 1 | E179: item(s) | F179: 1.5 | G179: 1 | I179: 1 | M179: 1.5 | N179: 0.09375
C180: … sack liner* | D180: 1 | E180: item(s) | F180: 1 | G180: 1 | I180: 1 | M180: 1 | N180: 0.0625
C181: … sack straps* | D181: 1 | E181: item(s) | F181: 1 | G181: 1 | I181: 1 | M181: 1 | N181: 0.0625
A182: Clothes, total | M182: =SUM(M142:M181) -> 82.5 | N182: 5.15625
A184: Total pack | M184: =M56+M77+M118+M139+M182 -> 377.5 | N184: =M184/16 -> 23.59375
A186: Total with food, fuel, and bear vault | M186: =M184+'Food and fuel'!P88 -> 554.3575 | N186: =M186/16 -> 34.64734375
A187: Total with food, fuel, and bear vault | K187: Rounded | M187: =ROUNDUP(M186,0) -> 555 | N187: =ROUNDUP(N186,0) -> 35
